bitfinex-derivatives/quotes_ETHF0:USTF0_20250213
["timestamp","ask_amount","ask_price","bid_price","bid_amount"]
[1739440948124,0.74538,2682.8,2682.7,3.95319]
[1739440949320,0.591,2682.9,2682.7,3.2078]
[1739440949526,1.33636,2682.9,2682.8,0.74538]
[1739440949720,0.74538,2682.8,2682.7,3.2078]
[1739440949924,1.34198,2682.8,2682.7,3.2078]
[1739440950429,0.5966,2682.8,2682.7,3.9532]
[1739440950729,1.34198,2682.8,2682.7,3.9532]
[1739440952230,1.34198,2682.8,2682.7,3.2078]
[1739440953132,4.61513266,2682.8,2682.7,3.2078]
[1739440953328,1.86352,2682.7,2682.3,3.9533]
[1739440953830,0.74549,2682.4,2682.3,3.2078]
[1739440954126,1.8636,2682.6,2682.1,1.1489]
[1739440954334,0.74554,2682.2,2682.1,0.5949]
[1739440954627,0.5525,2682.3,2681.9,3.2078]
[1739440954824,0.7456,2682.0,2681.9,3.2078]
[1739440955223,0.7456,2682.0,2681.9,3.95343]
[1739440955623,0.7456,2682.0,2681.9,3.2078]
[1739440955825,0.7456,2682.0,2681.9,3.95343]
[1739440957032,0.5525,2682.3,2681.9,3.2078]
[1739440957335,0.74556,2682.2,2682.1,0.74556]
[1739440957735,3.2078,2682.7,2682.3,0.74549]
[1739440958027,0.74548,2682.5,2682.0,0.5664]
[1739440958233,0.74549,2682.4,2682.3,0.7455]
[1739440958423,1.1211,2682.6,2682.3,0.7455]
[1739440958621,0.74549,2682.4,2682.3,0.7455]
[1739440959029,1.1211,2682.6,2682.5,0.74546]
[1739440959528,0.5527,2682.6,2682.5,0.74546]
[1739440961427,1.31377,2682.9,2682.4,0.5787]
[1739440961620,1.87527,2682.9,2682.8,0.74538]
[1739440961827,0.74538,2682.8,2682.6,3.2078]
[1739440962129,0.74543,2682.6,2682.5,0.74544]
[1739440962631,0.74543,2682.7,2682.5,0.74544]
[1739440963133,0.74543,2682.7,2682.4,0.5787]
[1739440963337,0.74543,2682.7,2682.6,0.74543]
[1739440964335,1.1299,2682.9,2682.4,0.5787]
[1739440964634,0.74543,2682.7,2682.6,0.74543]
[1739440967939,0.74541,2682.8,2682.7,0.74538]
[1739440968433,1.87527,2682.9,2682.8,0.74538]
[1739440969639,1.1299,2682.9,2682.8,0.74538]
[1739440970531,1.87525,2682.9,2682.8,0.74538]
[1739440971439,0.7454,2682.7,2682.6,0.74542]
[1739440974232,0.7454,2682.8,2682.4,2.44242]
[1739440974442,0.7454,2682.8,2682.7,0.74538]
[1739440976542,1.1299,2682.9,2682.5,1.86361]
[1739440976839,0.5615,2682.9,2682.8,0.74538]
[1739440977833,0.00559315,2683.0,2682.9,0.74535]
[1739440979435,0.00559315,2683.0,2682.9,4.51015]
[1739440985147,0.00559315,2683.0,2682.7,0.5428]
[1739440985447,1.90053315,2683.0,2682.9,0.74535]
[1739440986144,1.15519315,2683.0,2682.9,0.74535]
[1739440986540,0.59939315,2683.0,2682.9,0.74535]
[1739440986741,0.00559315,2683.0,2682.9,3.95315]
[1739440996367,0.00559315,2683.0,2682.9,4.24655004]
[1739440999761,1.30367,2683.6,2682.9,4.24655004]
[1739440999762,2.995,2684.0,2683.1,3.72644]
[1739440999961,1.6625,2684.0,2683.5,5.07074]
[1739441000153,0.74508,2683.9,2683.8,0.74508]
[1739441000556,1.6625,2684.0,2683.6,0.5524]
[1739441000763,2.40756,2684.0,2683.9,0.74507]
[1739441001066,1.6625,2684.0,2683.6,0.5524]
[1739441001259,1.6625,2684.0,2683.9,0.74507]
[1739441001459,2.40754,2684.0,2683.9,0.74507]
[1739441001769,0.74508,2683.9,2683.8,0.74508]
[1739441001962,0.74513,2683.7,2683.6,1.29755]
[1739441002161,0.74513,2683.7,2683.6,0.5524]
[1739441002467,0.74513,2683.7,2683.6,1.29755]
[1739441002768,0.74515,2683.6,2683.5,3.21339315]
[1739441002967,0.74515,2683.6,2683.5,3.95857315]
[1739441003771,0.74515,2683.6,2683.5,3.21339315]
[1739441004963,0.74515,2683.6,2683.5,3.95857315]
[1739441005265,0.74515,2683.6,2683.5,0.00559315]
[1739441005863,1.33375,2683.6,2683.5,0.00559315]
[1739441006368,1.33375,2683.6,2683.5,0.75077315]
[1739441007266,1.33375,2683.6,2683.5,0.00559315]
[1739441007467,1.33375,2683.6,2683.5,0.75077315]
[1739441008362,0.5886,2683.6,2683.5,0.75077315]
[1739441008873,1.1054,2684.0,2683.5,0.00559315]
[1739441009073,0.589,2683.9,2683.8,0.7451]
[1739441009671,1.33407,2683.9,2683.8,0.7451]
[1739441010369,0.589,2683.9,2683.8,0.7451]
[1739441010977,1.33407,2683.9,2683.8,0.7451]
[1739441011274,0.589,2683.9,2683.8,0.7451]
[1739441012581,0.589,2683.9,2683.7,1.1564]
[1739441012582,0.5521,2684.0,2683.7,1.1564]
[1739441012783,0.74505,2684.0,2683.7,4.3642]
[1739441013078,0.74505,2684.0,2683.8,0.7451]
[1739441013279,4.49753,2684.1,2683.9,0.74505]
[1739441013679,4.49754,2684.1,2683.9,0.74505]
[1739441014080,1.28974,2684.1,2683.9,0.74505]
[1739441014282,0.74504,2684.0,2683.9,0.74505]
[1739441014472,0.5447,2684.1,2683.8,41.3454]
[1739441014675,0.74507,2683.9,2683.8,42.09049]
[1739441014983,0.74507,2683.9,2683.8,1.2905]
[1739441016585,0.5447,2684.1,2683.8,0.5454]
[1739441016880,0.74506,2684.0,2683.9,0.74507]
[1739441017680,1.28974,2684.1,2684.0,0.74504]
[1739441017882,1.28974,2684.1,2683.8,0.5454]
[1739441018177,0.5447,2684.1,2684.0,0.74504]
[1739441018380,3.27315266,2684.6,2684.0,3.2078]
[1739441018588,0.74494,2684.4,2684.3,0.74494]
[1739441018878,2.48562,2684.5,2684.4,0.74493]
[1739441019087,0.74494,2684.4,2684.3,0.74494]
[1739441019284,1.88872,2684.5,2684.4,0.74493]
[1739441019484,1.8887,2684.5,2684.4,0.74493]
[1739441019787,0.5776,2684.5,2684.4,0.74493]
[1739441020184,0.5776,2684.5,2684.3,0.5604]
[1739441020386,0.74493,2684.4,2684.3,0.5604]
[1739441020586,0.74493,2684.4,2684.3,1.30536]
[1739441020784,0.74493,2684.4,2684.3,0.5604]
[1739441020988,0.74493,2684.4,2684.3,0.74496]
[1739441021590,0.5776,2684.5,2684.4,0.74493]
[1739441021984,0.5776,2684.5,2684.4,4.01808266]
[1739441022386,1.3225,2684.5,2684.4,0.74493]
[1739441022689,0.5776,2684.5,2684.4,0.74493]
[1739441022885,1.3225,2684.5,2684.3,3.2078]
[1739441023090,0.74493,2684.4,2684.3,3.2078]
[1739441023289,0.5776,2684.5,2683.9,0.5478]
[1739441023290,0.74504,2684.0,2683.9,0.5478]
[1739441023889,0.5959,2684.1,2683.7,0.5383]
[1739441024194,0.5959,2684.1,2683.6,3.2078]
[1739441024195,0.74513,2683.7,2683.6,3.7482]
[1739441024490,0.74513,2683.7,2683.6,4.49333]
[1739441024888,0.74512,2683.8,2683.6,4.49333]
[1739441025083,0.5959,2683.7,2683.6,4.49333]
[1739441025589,0.5792,2684.2,2683.9,0.74506]
[1739441025891,0.5959,2684.1,2683.9,0.74506]
[1739441026091,0.74504,2684.0,2683.9,0.74506]
[1739441026389,0.74507,2683.9,2683.6,4.3324]
[1739441026695,0.5959,2684.1,2683.8,0.7451]
[1739441026891,0.74506,2684.0,2683.8,0.7451]
[1739441027087,0.74506,2684.0,2683.6,4.3324]
[1739441027283,0.74507,2683.9,2683.8,0.74509]
[1739441027487,0.74507,2683.9,2683.8,0.7451]
[1739441027689,0.74511,2683.8,2683.6,5.07753]
[1739441027897,0.74511,2683.8,2683.6,4.3324]
[1739441028087,0.74513,2683.7,2683.6,5.07754]
[1739441028282,0.5902,2683.7,2683.6,5.07754]
[1739441028995,0.5902,2683.7,2683.6,3.7482]
[1739441029196,1.33533,2683.7,2683.6,3.2078]
[1739441030491,1.33533,2683.7,2683.6,3.95295]
[1739441031701,0.5902,2683.7,2683.6,3.95295]
[1739441032187,1.33533,2683.7,2683.6,3.95295]
[1739441033293,0.5902,2683.7,2683.6,3.95295]
[1739441033495,1.33533,2683.7,2683.6,3.95295]
[1739441034002,0.74511,2683.8,2683.6,3.2078]
[1739441034299,0.74511,2683.8,2683.7,0.74513]
[1739441034696,0.74509,2683.9,2683.8,0.74508]
[1739441035306,0.74511,2683.8,2683.7,0.74511]
[1739441035499,2.45443,2684.0,2683.6,3.2078]
[1739441035697,0.74513,2683.7,2683.6,3.95295]
[1739441035895,0.74513,2683.7,2683.6,44.0078]
[1739441036706,0.74513,2683.7,2683.6,3.2078]
[1739441037198,0.74513,2683.7,2683.6,3.95295]
[1739441037391,0.74513,2683.7,2683.6,3.2078]
[1739441038504,1.32393,2683.7,2683.6,3.2078]
[1739441039306,1.32393,2683.7,2683.6,3.95295]
[1739441039604,1.32393,2683.7,2683.6,3.2078]
[1739441039803,1.32393,2683.7,2683.6,3.95295]
[1739441039999,1.32393,2683.7,2683.6,3.2078]
[1739441040604,1.32393,2683.7,2683.6,3.95295]
[1739441041101,1.32393,2683.7,2683.6,3.2078]
[1739441041501,1.32393,2683.7,2683.6,3.95295]
[1739441042308,0.5788,2683.7,2683.6,3.95295]
[1739441042507,1.32393,2683.7,2683.6,3.95295]
[1739441043595,1.32393,2683.7,2683.6,3.2078]
[1739441044405,1.32393,2683.7,2683.6,3.95295]
[1739441045411,0.5788,2683.7,2683.6,3.95295]
[1739441045620,0.5497,2683.8,2683.6,3.2078]
[1739441045908,0.74509,2683.9,2683.8,0.74507]
[1739441046312,0.74513,2683.7,2683.6,3.2078]
[1739441046506,0.74513,2683.7,2683.6,3.95295]
[1739441047810,0.74513,2683.7,2683.6,3.2078]
[1739441050016,0.74515,2683.6,2683.5,0.00559315]
[1739441050207,2.46695,2683.6,2683.5,0.00559315]
[1739441051009,1.7218,2683.6,2683.0,0.5514]
[1739441051314,1.7218,2683.6,2682.9,3.2078]
[1739441051315,0.74532,2683.0,2682.9,3.2078]
[1739441051904,0.5923,2683.2,2683.1,0.74529]
[1739441052312,0.74529,2683.1,2683.0,1.30231]
[1739441052616,0.5923,2683.2,2683.0,0.557]
[1739441052816,0.74529,2683.1,2683.0,1.3023]
[1739441053717,0.5923,2683.2,2683.0,0.557]
[1739441053917,0.5923,2683.2,2683.1,0.74529]
[1739441054118,1.33756,2683.2,2683.1,0.74529]
[1739441054415,1.33756,2683.2,2683.0,0.557]
[1739441054618,0.5923,2683.2,2683.0,0.557]
[1739441054814,0.74529,2683.1,2683.0,1.30231]
[1739441055006,0.5923,2683.2,2683.0,1.30231]
[1739441055207,1.33758,2683.2,2682.9,3.21339315]
[1739441055408,3.2078,2683.0,2681.9,1.7259]
[1739441055709,1.86365,2682.5,2681.9,1.1679]
[1739441056011,0.74557,2682.1,2682.0,0.558]
[1739441056218,0.74557,2682.1,2681.9,0.5798]
[1739441056219,0.7456,2682.0,2681.9,0.5798]
[1739441062418,0.74557,2682.2,2682.1,0.74555]
[1739441062624,3.84075266,2682.4,2681.9,0.5798]
[1739441062823,0.74556,2682.2,2682.1,0.74554]
[1739441063017,3.84075266,2682.4,2681.9,0.5798]
[1739441063223,0.7456,2682.0,2681.9,1.3254]
[1739441063419,0.7456,2682.0,2681.9,0.5798]
[1739441063822,0.7456,2682.0,2681.9,1.32543]
[1739441064023,0.7456,2682.0,2681.9,0.5798]
[1739441065124,3.2078,2682.3,2681.9,0.5798]
[1739441065428,0.7456,2682.0,2681.9,0.5798]
[1739441067125,0.7456,2682.0,2681.9,1.32543]
[1739441067727,0.7456,2682.0,2681.9,0.5798]
[1739441069329,0.7456,2682.0,2681.9,1.32543]
[1739441069529,0.74559,2682.1,2682.0,0.74558]
[1739441070530,0.7456,2682.0,2681.9,1.3254]
[1739441070728,0.74559,2682.1,2682.0,0.74558]
[1739441071627,3.84075266,2682.4,2681.9,2.44386]
[1739441071827,0.74556,2682.2,2682.1,0.74555]
[1739441072126,0.7456,2682.1,2682.0,0.74558]
[1739441072326,0.7456,2682.0,2681.9,1.32541]
[1739441073330,0.74557,2682.2,2681.9,0.5798]
[1739441073520,0.74557,2682.2,2682.1,0.74557]
[1739441073833,3.84075266,2682.4,2681.9,0.5798]
[1739441074034,4.58625266,2682.4,2682.3,0.74551]
[1739441074534,3.84075266,2682.4,2682.1,1.1449]
[1739441074734,0.74554,2682.2,2682.1,1.1449]
[1739441074931,5.70448266,2682.4,2682.0,0.74558]
[1739441075130,1.86386,2682.2,2681.9,1.32542]
[1739441075433,0.7456,2682.0,2681.9,0.5798]
[1739441076527,0.7456,2682.0,2681.9,1.32543]
[1739441077435,1.31799,2682.1,2682.0,0.7456]
[1739441077631,0.7456,2682.0,2681.9,0.5798]
[1739441078336,0.7456,2682.0,2681.9,1.32543]
[1739441078923,0.7456,2682.0,2681.9,0.5798]
[1739441079128,0.5893,2682.0,2681.8,3.95343]
[1739441079329,0.74563,2681.9,2681.8,3.95344]
[1739441079829,0.74563,2681.9,2681.8,3.2078]
[1739441080029,0.74563,2681.9,2681.8,3.95345]
[1739441081037,0.5893,2682.0,2681.8,3.2078]
[1739441081237,1.33492,2682.0,2681.9,0.74563]
[1739441081937,0.5893,2682.0,2681.8,3.2078]
[1739441082134,0.74563,2681.9,2681.8,3.2078]
[1739441082536,0.74565,2681.8,2681.7,0.00559315]
[1739441082734,4.01880266,2681.8,2681.7,0.00559315]
[1739441083649,4.01880266,2681.8,2681.7,0.75127315]
[1739441084937,3.80269315,2682.0,2681.7,0.00559315]
[1739441085129,0.74565,2681.9,2681.8,0.74563]
[1739441085737,0.74565,2681.9,2681.8,1.32933]
[1739441086148,1.34051315,2682.0,2681.9,0.74563]
[1739441087540,0.59489315,2682.0,2681.8,0.5837]
[1739441087739,0.74563,2681.9,2681.8,1.32933]
[1739441088834,0.59489315,2682.0,2681.8,0.5837]
[1739441089040,0.74563,2681.9,2681.8,1.88933]
[1739441090737,0.74563,2681.9,2681.8,1.1437]
[1739441090938,0.74563,2681.9,2681.8,1.88935]
[1739441091244,0.74563,2681.9,2681.8,1.1437]
[1739441091439,0.74563,2681.9,2681.8,1.88935]
[1739441091644,0.74563,2681.9,2681.8,1.88933]
[1739441092948,0.74563,2681.9,2681.8,1.1437]
[1739441093148,0.74563,2681.9,2681.8,0.5837]
[1739441093349,0.74563,2681.9,2681.8,1.32935]
[1739441096446,0.74563,2681.9,2681.8,0.5837]
[1739441096643,0.74563,2681.9,2681.8,1.32935]
[1739441096844,0.59489315,2682.0,2681.8,0.5837]
[1739441097044,1.34051315,2682.0,2681.9,0.74563]
[1739441097749,0.74563,2681.9,2681.8,1.32933]
[1739441098952,0.59489315,2682.0,2681.8,0.5837]
[1739441099146,1.34052315,2682.0,2681.9,0.74563]
[1739441100249,0.59489315,2682.0,2681.9,0.74563]
[1739441100455,0.59489315,2682.0,2681.9,1.30973]
[1739441100660,1.34049315,2682.0,2681.9,1.30973]
[1739441100955,0.00559315,2682.0,2681.9,1.30973]
[1739441103448,0.75119315,2682.0,2681.9,1.30973]
[1739441103646,0.75119315,2682.0,2681.9,0.5641]
[1739441103947,0.75119315,2682.0,2681.7,3.21339315]
[1739441103948,0.00559315,2682.0,2681.7,3.21339315]
[1739441104151,0.74565,2681.8,2681.7,3.95904315]
[1739441104853,0.74565,2681.8,2681.7,3.21339315]
[1739441105046,0.74565,2681.8,2681.7,0.00559315]
[1739441105047,4.01880266,2681.8,2681.7,0.00559315]
[1739441107757,4.01880266,2681.8,2681.1,3.95364]
[1739441107758,0.74582,2681.2,2681.1,3.95364]
[1739441107961,0.74582,2681.2,2681.1,0.74584]
[1739441108159,3.27315266,2681.3,2681.2,0.74582]
[1739441108358,0.74578,2681.4,2681.3,0.74578]
[1739441108560,0.7458,2681.3,2681.2,0.74579]
[1739441109249,0.74582,2681.2,2681.1,0.74585]
[1739441110353,0.74585,2681.1,2681.0,0.00559315]
[1739441110560,1.87795,2681.1,2681.0,0.00559315]
[1739441111354,7.1321,2681.1,2680.3,3.51313343]
[1739441111654,4.01919266,2680.4,2680.3,3.2078]
[1739441112256,0.74603,2680.5,2680.3,3.2078]
[1739441112455,0.74602,2680.5,2680.4,0.74603]
[1739441112655,0.74602,2680.5,2680.4,1.117]
[1739441112850,0.56409315,2680.6,2680.3,3.2078]
[1739441113054,0.74604,2680.4,2680.3,3.2078]
[1739441113260,0.74602,2680.5,2680.4,0.74603]
[1739441113461,0.74602,2680.5,2680.4,2.40364]
[1739441113669,0.00559315,2680.6,2680.4,1.6576]
[1739441114157,0.75159315,2680.6,2680.4,2.40362]
[1739441114364,0.75160315,2680.6,2680.4,2.40363]
[1739441114563,0.00559315,2680.6,2680.4,1.6576]
[1739441115066,0.74602,2680.5,2680.4,1.6576]
[1739441115256,0.00559315,2680.6,2680.4,2.40363]
[1739441115564,0.00559315,2680.6,2680.5,0.74602]
[1739441116362,0.00559315,2680.6,2680.5,41.54602]
[1739441117555,0.5475,2681.2,2680.5,46.8]
[1739441117760,3.2078,2681.4,2681.2,0.7458]
[1739441117761,3.95358,2681.4,2681.2,0.7458]
[1739441117961,3.95357,2681.4,2680.8,5.07261]
[1739441118166,3.2078,2681.4,2680.9,1.6971]
[1739441118366,0.5475,2681.5,2681.4,0.74576]
[1739441118665,0.00559315,2681.7,2681.1,3.2078]
[1739441118864,0.00559315,2681.7,2681.6,0.74571]
[1739441119266,0.00559315,2681.7,2681.6,1.89151]
[1739441120470,0.00559315,2681.7,2681.6,1.1458]
[1739441120874,0.00559315,2681.7,2681.6,1.89151]
[1739441121073,0.00559315,2681.7,2681.6,1.1458]
[1739441121571,0.00559315,2681.7,2681.6,1.89151]
[1739441122274,0.00559315,2681.7,2681.6,1.1458]
[1739441122467,0.00559315,2681.7,2681.6,1.89151]
[1739441123069,0.00559315,2681.7,2681.6,2.44551]
[1739441123675,0.00559315,2681.7,2681.6,5.71866266]
[1739441123875,0.00559315,2681.7,2681.6,7.35966266]
[1739441124272,0.00559315,2681.7,2681.6,7.65669857]
[1739441124579,1.1046,2682.5,2681.6,12.91098857]
[1739441124774,0.7455,2682.4,2682.3,0.74551]
[1739441124972,0.7455,2682.4,2682.2,0.74552]
[1739441125172,1.85007,2682.5,2682.3,0.74549]
[1739441125372,1.1046,2682.5,2682.0,3.2078]
[1739441125578,0.7455,2682.4,2682.1,0.55649315]
[1739441125774,0.7455,2682.4,2682.3,0.74551]
[1739441125974,1.1046,2682.5,2682.1,0.55649315]
[1739441126173,1.1046,2682.5,2682.4,0.74549]
[1739441126374,3.77939315,2682.7,2682.6,0.74543]
[1739441126375,0.00559315,2682.7,2682.6,0.74543]
[1739441127676,0.74543,2682.6,2682.4,3.7595]
[1739441127881,0.00559315,2682.7,2682.5,0.74546]
[1739441127882,0.75101315,2682.7,2682.5,0.74546]
[1739441128082,0.74544,2682.6,2682.4,4.50497]
[1739441128279,4.01861266,2682.5,2682.4,3.2078]
[1739441128469,3.85295266,2682.5,2682.1,0.55649315]
[1739441128879,0.74554,2682.2,2682.1,0.00559315]
[1739441129186,4.01869266,2682.2,2682.1,0.00559315]
[1739441131684,4.01869266,2682.2,2681.3,0.5411]
[1739441131685,3.33592828,2682.2,2681.3,0.5411]
[1739441131890,0.74576,2681.5,2681.3,0.74578]
[1739441132189,0.5903,2681.4,2681.3,0.74578]
[1739441132695,1.33606,2681.4,2681.3,0.74578]
[1739441132986,0.5903,2681.4,2681.3,0.74578]
[1739441133695,1.33606,2681.4,2681.3,0.74578]
[1739441133884,0.5903,2681.4,2681.3,0.74578]
[1739441134185,1.33606,2681.4,2681.3,0.74578]
[1739441134392,0.74579,2681.3,2681.2,3.95361]
[1739441134587,1.33608,2681.4,2681.3,0.74579]
[1739441134990,0.74579,2681.3,2681.2,3.2078]
[1739441135190,1.33608,2681.4,2681.2,3.9536]
[1739441135790,0.5903,2681.4,2681.3,0.74579]
[1739441135996,0.5557,2681.7,2681.6,0.74571]
[1739441136289,0.5582,2681.9,2681.5,3.2078]
[1739441136487,0.5582,2681.9,2681.8,0.74565]
[1739441136692,0.5637,2682.1,2681.6,0.5826]
[1739441136889,0.5637,2682.1,2681.7,0.5561]
[1739441137095,0.5818,2682.2,2682.1,0.74557]
[1739441137297,0.74558,2682.1,2682.0,0.74559]
[1739441137498,0.74557,2682.1,2682.0,0.74559]
[1739441137698,0.59785116,2682.2,2682.1,0.74557]
[1739441137903,0.01605116,2682.2,2682.1,3.95337]
[1739441141894,0.01605116,2682.2,2681.8,44.0078]
[1739441142089,0.7456,2682.1,2681.8,3.2078]
[1739441142296,0.7456,2682.1,2681.9,0.74562]
[1739441142494,0.01605116,2682.0,2681.9,0.74562]
[1739441142694,0.76166116,2682.0,2681.8,3.95344]
[1739441142998,0.74563,2681.9,2681.8,3.2078]
[1739441143394,0.74573,2681.6,2681.4,0.74576]
[1739441144196,1.1335,2681.8,2681.7,0.74568]
[1739441144400,0.569,2681.8,2681.7,3.95348]
[1739441144592,0.03194062,2681.8,2681.7,3.95348]
[1739441145296,1.64,2682.6,2681.7,9.2078]
[1739441145493,0.59729315,2682.7,2682.4,0.74548]
[1739441145494,0.74546,2682.5,2682.4,0.74548]
[1739441145694,1.16629315,2682.7,2682.1,1.86393]
[1739441145997,0.74544,2682.6,2682.1,1.86393]
[1739441146397,0.74544,2682.6,2682.4,0.74546]
[1739441146901,1.91170315,2682.7,2682.6,0.74543]
[1739441147100,0.57459315,2682.7,2682.6,0.74543]
[1739441147396,0.57459315,2682.7,2682.3,3.2078]
[1739441147594,0.74543,2682.6,2682.5,0.74544]
[1739441147796,0.57459315,2682.7,2682.0,3.2078]
[1739441147989,0.74552,2682.3,2682.0,3.2078]
[1739441148194,0.74557,2682.2,2682.0,3.95339]
[1739441148401,0.74546,2682.5,2682.0,0.74559]
[1739441148705,0.74557,2682.1,2682.0,0.74559]
[1739441149003,0.74559,2682.1,2681.9,2.38561]
[1739441149197,3.2078,2682.3,2681.8,0.57]
[1739441149397,3.84995266,2682.5,2681.8,0.57]
[1739441149700,0.74555,2682.2,2681.8,0.57]
[1739441149998,0.5768,2682.5,2681.8,0.57]
[1739441150202,0.5768,2682.5,2682.0,3.2078]
[1739441150705,0.74553,2682.3,2682.2,0.74554]
[1739441150998,0.5768,2682.5,2682.0,3.2078]
[1739441151302,0.74557,2682.1,2682.0,3.95339]
[1739441151705,0.5768,2682.5,2682.0,3.2078]
[1739441152202,3.2078,2682.6,2682.0,3.2078]
[1739441152406,3.2078,2682.6,2682.4,0.74546]
[1739441152705,1.32001315,2682.7,2682.6,0.74543]
[1739441152904,0.57459315,2682.7,2682.6,0.74543]
[1739441153403,1.31999315,2682.7,2682.6,0.74543]
[1739441153597,0.57459315,2682.7,2682.6,0.74543]
[1739441153791,0.00559315,2682.7,2682.6,0.74543]
[1739441156902,0.00559315,2682.7,2682.6,3.95323]
[1739441160400,0.00559315,2682.7,2682.6,0.74543]
[1739441160605,0.00559315,2682.7,2682.6,3.95323]
[1739441161502,0.75100315,2682.7,2682.6,0.74543]
[1739441161802,0.75100315,2682.7,2682.4,0.5538]
[1739441161803,0.00559315,2682.7,2682.4,0.5538]
[1739441162001,0.74546,2682.5,2682.4,0.74548]
[1739441162806,0.5677,2682.5,2682.4,0.74548]
[1739441166406,0.00559315,2682.7,2682.6,0.74543]
[1739441166608,0.00559315,2682.7,2682.6,3.95323]
[1739441167515,0.00559315,2682.7,2682.6,44.75323]
[1739441168811,0.5501,2683.3,2683.2,0.74526]
[1739441169013,0.5709,2683.4,2683.3,0.74524]
[1739441169316,0.5501,2683.6,2683.1,3.2078]
[1739441169514,0.5501,2683.6,2683.5,0.74518]
[1739441170926,0.5501,2683.6,2683.3,0.00559315]
[1739441171313,1.29528,2683.6,2683.4,0.74521]
[1739441172020,0.5501,2683.6,2683.3,0.00559315]
[1739441172314,0.5501,2683.6,2683.5,0.74518]
[1739441172512,0.5709,2683.7,2683.6,0.74515]
[1739441174117,0.5709,2683.7,2683.3,0.00559315]
[1739441174421,0.74517,2683.6,2683.5,0.74518]
[1739441174921,1.31604,2683.7,2683.6,0.74515]
[1739441175219,1.31604,2683.7,2683.3,0.00559315]
[1739441175427,1.31604,2683.7,2683.5,0.74516]
[1739441175922,0.5709,2683.7,2683.3,0.00559315]
[1739441176114,0.74516,2683.6,2683.5,0.74517]
[1739441176314,0.5709,2683.7,2683.3,0.00559315]
[1739441176514,0.74515,2683.6,2683.3,0.00559315]
[1739441176820,0.74515,2683.6,2683.5,0.74518]
[1739441177020,1.31603,2683.7,2683.6,0.74515]
[1739441177221,0.74516,2683.6,2683.4,3.2078]
[1739441177425,0.74517,2683.6,2683.4,3.2078]
[1739441177716,0.5709,2683.7,2683.3,0.00559315]
[1739441177915,0.74521,2683.4,2683.3,0.00559315]
[1739441178515,4.01836266,2683.4,2683.3,0.00559315]
[1739441178816,0.74543,2682.6,2682.5,3.2078]
[1739441179022,3.27315266,2683.0,2682.5,3.2078]
[1739441179222,0.7454,2682.8,2682.6,0.74543]
[1739441179423,0.5404,2682.9,2682.5,3.2078]
[1739441179622,0.5481,2682.7,2682.5,3.2078]
[1739441179821,1.29352,2682.7,2682.5,3.95324]
[1739441180621,0.5481,2682.7,2682.5,3.2078]
[1739441180923,1.29351,2682.7,2682.5,3.95324]
[1739441181419,0.5481,2682.7,2682.5,3.2078]
[1739441181724,0.5481,2682.7,2682.4,0.00559315]
[1739441181725,0.74546,2682.5,2682.4,0.00559315]
[1739441182919,3.82125266,2682.7,2682.4,0.00559315]
[1739441183120,0.74543,2682.6,2682.4,0.00559315]
[1739441183318,3.82125266,2682.7,2682.4,0.00559315]
[1739441183514,0.74544,2682.6,2682.4,0.00559315]
[1739441183726,0.74546,2682.5,2682.4,0.00559315]
[1739441185227,0.7456,2682.0,2681.9,3.95343]
[1739441185528,3.27315266,2682.3,2681.9,3.2078]
[1739441185728,0.74559,2682.1,2682.0,0.74559]
[1739441186025,0.74559,2682.1,2682.0,0.7456]
[1739441186222,0.5764,2682.5,2681.9,3.2078]
[1739441186525,0.00559315,2682.3,2682.2,0.74553]
[1739441186819,0.75110315,2682.3,2682.2,0.74553]
[1739441187228,0.00559315,2682.3,2681.9,3.2078]
[1739441187528,0.74556,2682.2,2682.1,0.74556]
[1739441188725,0.00559315,2682.3,2682.1,0.74555]
[1739441189030,0.74554,2682.2,2682.1,0.74557]
[1739441189225,0.00559315,2682.3,2682.0,1.32138]
[1739441189426,0.74554,2682.2,2682.1,40.8]
[1739441189727,0.74554,2682.2,2682.1,41.54557]
[1739441189925,0.00559315,2682.3,2682.1,41.54557]
[1739441190328,0.74554,2682.2,2682.1,40.8]
[1739441190722,0.00559315,2682.3,2681.9,3.2078]
[1739441190926,0.7456,2682.0,2681.9,3.2078]
[1739441192527,0.74563,2681.9,2681.8,0.00559315]
[1739441192733,1.87143,2681.9,2681.8,0.00559315]
[1739441196528,0.74576,2681.4,2681.3,40.8]
[1739441196934,0.5728,2681.5,2681.1,0.5809]
[1739441197231,0.74585,2681.2,2681.1,0.74583]
[1739441197625,0.74588,2681.1,2681.0,0.74586]
[1739441197831,0.74588,2681.0,2680.9,4.53388315]
[1739441198539,0.74588,2681.0,2680.9,3.95928315]
[1739441198831,0.74588,2681.0,2680.9,3.21339315]
[1739441202532,0.74588,2681.0,2680.9,0.00559315]
[1739441204342,6.0,2681.0,2680.4,0.5546]
[1739441204538,0.74602,2680.5,2680.4,0.5546]
[1739441204842,3.2078,2680.7,2680.0,41.10142185]
[1739441205044,0.74613,2680.1,2680.0,0.85272185]
[1739441205546,0.74613,2680.1,2680.0,0.5513]
[1739441205940,0.74613,2680.1,2680.0,1.29745]
[1739441206351,0.74613,2680.1,2680.0,0.5513]
[1739441206938,0.74613,2680.1,2680.0,1.29745]
[1739441207139,3.27315266,2680.2,2679.9,40.8]
[1739441207457,3.27315266,2680.2,2679.8,0.0037288]
[1739441207458,0.74618,2679.9,2679.8,0.0037288]
[1739441207647,4.01933266,2679.9,2679.8,0.0037288]
[1739441211541,2.38618,2679.9,2679.8,0.0037288]
[1739441212752,2.38618,2679.9,2679.8,40.8037288]
[1739441213444,2.95648,2679.9,2679.8,0.0037288]
[1739441214046,3.52698,2679.9,2679.8,0.0037288]